bitfinex-derivatives/quotes_BTCF0:USTF0_20251214
["timestamp","ask_amount","ask_price","bid_price","bid_amount"]
[1765751464214,0.02809007,88301.0,88298.0,0.02096]
[1765751464408,0.02809007,88300.0,88298.0,0.02096]
[1765751464608,0.02809007,88299.0,88298.0,0.02096]
[1765751464808,0.02809007,88299.0,88298.0,0.08991]
[1765751465205,0.6185299,88309.0,88298.0,0.08991]
[1765751465206,0.0001699,88309.0,88308.0,0.06895]
[1765751465406,0.0001699,88309.0,88298.0,0.02096]
[1765751465614,0.02823746,88309.0,88299.0,0.03544]
[1765751465806,0.0001699,88309.0,88308.0,0.06895]
[1765751466005,0.3609699,88309.0,88308.0,0.06895]
[1765751466205,0.38837574,88309.0,88308.0,0.06895]
[1765751466409,0.02806574,88309.0,88308.0,0.06895]
[1765751467106,0.3608,88318.0,88317.0,0.06895]
[1765751467313,0.02805479,88318.0,88317.0,0.06895]
[1765751468521,0.02901973,88318.0,88317.0,0.06895]
[1765751468719,0.38981973,88318.0,88312.0,0.02096]
[1765751469024,0.02801973,88317.0,88312.0,0.02096]
[1765751469215,0.3618,88318.0,88312.0,0.02096]
[1765751469419,0.02799635,88317.0,88312.0,0.02096]
[1765751469617,0.3618,88318.0,88312.0,0.02096]
[1765751470226,0.0113219,88317.0,88312.0,0.02196]
[1765751470427,0.0113219,88317.0,88316.0,0.06895]
[1765751470621,0.3638,88318.0,88317.0,0.06895]
[1765751470816,0.003,88318.0,88317.0,0.06895]
[1765751471017,0.3609699,88326.0,88325.0,0.06895]
[1765751472227,0.00017,88326.0,88325.0,0.06895]
[1765751472530,0.3608,88336.0,88335.0,0.08991]
[1765751473028,0.3608,88336.0,88335.0,0.02096]
[1765751473424,0.3608,88336.0,88335.0,0.08991]
[1765751474026,0.3608,88336.0,88335.0,0.02096]
[1765751474235,0.3648,88336.0,88335.0,0.02196]
[1765751474734,0.0113224,88313.0,88309.0,0.0001699]
[1765751474922,0.3721224,88313.0,88309.0,0.0001699]
[1765751475224,0.3608,88313.0,88312.0,0.08991]
[1765751475427,0.00011233,88321.0,88320.0,0.06895]
[1765751475626,2.33e-06,88321.0,88320.0,0.06895]
[1765751475927,0.3608,88348.0,88335.0,0.06895]
[1765751475928,0.006,88336.0,88335.0,0.06895]
[1765751476319,0.3608,88348.0,88347.0,0.03544]
[1765751476627,0.3608,88348.0,88326.0,0.13643431]
[1765751476628,0.3608,88348.0,88340.0,0.02096]
[1765751476828,0.3608,88341.0,88340.0,0.02096]
[1765751477135,0.3608,88341.0,88340.0,0.0564]
[1765751477438,0.3608,88341.0,88340.0,0.08991]
[1765751478423,0.3618,88341.0,88340.0,0.09091]
[1765751478927,0.3658,88341.0,88340.0,0.09091]
[1765751479521,0.3638,88341.0,88340.0,0.09191]
[1765751480026,0.0113109,88403.0,88340.0,0.09191]
[1765751480027,0.11541712,88350.0,88340.0,0.02296]
[1765751480233,0.47621712,88350.0,88340.0,0.02296]
[1765751480419,0.48753482,88350.0,88340.0,0.02296]
[1765751481231,0.0113184,88344.0,88343.0,0.06895]
[1765751481826,0.0113179,88349.0,88343.0,0.06895]
[1765751482025,0.0416479,88349.0,88348.0,0.02096]
[1765751482737,0.0719779,88349.0,88348.0,0.02096]
[1765751482924,0.3608,88350.0,88349.0,0.06895]
[1765751483837,0.42109,88350.0,88349.0,0.03544]
[1765751484030,0.42109,88350.0,88348.0,0.02396]
[1765751484031,0.0712378,88349.0,88348.0,0.02396]
[1765751484233,0.0712378,88349.0,88348.0,0.003]
[1765751484531,0.09926965,88349.0,88348.0,0.003]
[1765751484836,0.09926965,88349.0,88348.0,0.001]
[1765751485537,0.10026965,88349.0,88348.0,0.002]
[1765751486125,0.10026965,88349.0,88348.0,0.0584]
[1765751486321,0.02803185,88349.0,88348.0,0.08991]
[1765751486532,0.03203185,88349.0,88348.0,0.09191]
[1765751487735,0.08841185,88349.0,88348.0,0.001]
[1765751487923,0.10072975,88349.0,88348.0,0.002]
[1765751488625,0.09772975,88349.0,88348.0,0.001]
[1765751488829,0.09972975,88349.0,88348.0,0.002]
[1765751489033,0.09972975,88349.0,88348.0,0.003]
[1765751489640,0.10072975,88349.0,88348.0,0.003]
[1765751490136,0.0665293,88337.0,88332.0,0.02096]
[1765751490336,0.45536115,88337.0,88336.0,1e-07]
[1765751491027,0.0566045,88326.0,88287.0,0.3608]
[1765751491229,0.38844,88297.0,88287.0,0.3608]
[1765751491445,0.43947329,88297.0,88287.0,0.3608]
[1765751491628,0.43947329,88297.0,88296.0,0.05593]
[1765751492430,0.44047329,88297.0,88296.0,0.05893]
[1765751492936,0.44047329,88297.0,88296.0,0.05993]
[1765751492937,0.44147329,88297.0,88296.0,0.05993]
[1765751493537,0.38619329,88297.0,88296.0,0.0925]
[1765751493933,0.38619329,88297.0,88296.0,0.0905]
[1765751494237,0.38519329,88297.0,88296.0,0.0895]
[1765751494436,0.38619329,88297.0,88296.0,0.0895]
[1765751494632,0.38719329,88297.0,88296.0,0.0905]
[1765751495333,0.44163329,88297.0,88296.0,0.0905]
[1765751496341,0.44163329,88297.0,88296.0,0.02327]
[1765751497835,0.44163329,88297.0,88296.0,0.0905]
[1765751498042,0.43949329,88297.0,88296.0,0.0905]
[1765751498339,0.43949329,88297.0,88296.0,0.02327]
[1765751498945,0.43949329,88297.0,88296.0,0.002]
[1765751499133,0.0629155,88289.0,88288.0,0.0001698]
[1765751499337,0.0629155,88289.0,88260.0,0.02127]
[1765751499338,0.0625675,88273.0,88260.0,0.02127]
[1765751499539,0.81219935,88273.0,88260.0,0.02127]
[1765751499938,0.0113286,88265.0,88260.0,0.02127]
[1765751500240,0.3608,88261.0,88260.0,0.0885]
[1765751500445,0.41449185,88261.0,88260.0,0.0885]
[1765751500639,0.41449185,88261.0,88252.0,0.0001699]
[1765751500640,0.05132,88256.0,88252.0,0.0001699]
[1765751500941,0.07935185,88256.0,88252.0,0.0001699]
[1765751501346,0.05097,88253.0,88252.0,0.0001699]
[1765751501536,0.43980185,88253.0,88252.0,0.0001699]
[1765751502249,0.43991579,88253.0,88252.0,0.0001699]
[1765751503444,0.44791579,88253.0,88252.0,0.0001699]
[1765751503939,0.44691579,88253.0,88252.0,0.0001699]
[1765751504144,0.44191579,88253.0,88252.0,0.0001699]
[1765751504344,0.44591579,88253.0,88252.0,0.0001699]
[1765751504854,0.44591579,88253.0,88218.0,0.3608]
[1765751504855,0.04856,88232.0,88218.0,0.3608]
[1765751505039,0.04868124,88232.0,88231.0,0.0885]
[1765751505240,0.00012124,88232.0,88231.0,0.0885]
[1765751505955,0.00017001,88240.0,88239.0,0.0785619]
[1765751506149,1e-08,88240.0,88239.0,0.0785619]
[1765751506555,1e-08,88240.0,88239.0,0.06723]
[1765751507062,0.07604065,88240.0,88231.0,0.02127]
[1765751507252,0.04724,88232.0,88231.0,0.02127]
[1765751507949,0.04724,88232.0,88231.0,0.0885]
[1765751508141,0.3608,88233.0,88232.0,0.06723]
[1765751508950,0.38407,88233.0,88232.0,0.06723]
[1765751509459,0.3608,88233.0,88232.0,0.06723]
[1765751509758,0.04586,88232.0,88231.0,0.02227]
[1765751510148,0.04586,88232.0,88231.0,0.0885]
[1765751510749,0.04518,88225.0,88224.0,0.02127]
[1765751511058,0.4173137,88225.0,88224.0,0.02127]
[1765751511761,0.4173137,88225.0,88201.0,0.3608]
[1765751511762,0.04484,88224.0,88201.0,0.3608]
[1765751511955,0.0554961,88206.0,88201.0,0.3608]
[1765751512160,0.0554961,88206.0,88191.0,0.3608]
[1765751512161,0.04382,88204.0,88191.0,0.3608]
[1765751512362,0.04382,88204.0,88188.0,0.02127]
[1765751512753,0.04382,88204.0,88181.0,0.3608]
[1765751512754,0.04364,88182.0,88181.0,0.3608]
[1765751512959,0.02182,88170.0,88163.0,0.3627]
[1765751513156,0.3608,88170.0,88169.0,0.06745684]
[1765751513751,0.40394962,88170.0,88169.0,0.00022684]
[1765751514359,0.40494962,88170.0,88169.0,0.00222684]
[1765751515156,0.0530615,88164.0,88163.0,0.0019]
[1765751515553,0.0531588,88164.0,88163.0,0.0019]
[1765751516461,0.0551588,88164.0,88163.0,0.0029]
[1765751518467,0.0020973,88164.0,88163.0,0.06863]
[1765751518654,0.0425973,88164.0,88163.0,0.0029]
[1765751518958,0.0020973,88164.0,88163.0,0.06863]
[1765751519161,0.0422673,88164.0,88163.0,0.0029]
[1765751519356,0.0412673,88164.0,88163.0,0.0019]
[1765751519664,0.0223473,88164.0,88163.0,0.06863]
[1765751520158,0.0422673,88164.0,88163.0,0.0029]
[1765751521265,0.0422673,88164.0,88163.0,0.03508]
[1765751521659,0.0223473,88164.0,88163.0,0.06863]
[1765751522165,0.0020973,88164.0,88163.0,0.06863]
[1765751522356,0.00017011,88172.0,88163.0,0.0029]
[1765751522558,1.41796,88195.0,88163.0,0.0029]
[1765751522559,0.11590792,88190.0,88181.0,0.06573]
[1765751522855,0.11590792,88190.0,88179.0,0.01994]
[1765751522856,0.39866,88190.0,88179.0,0.01994]
[1765751523173,0.0523362,88206.0,88205.0,0.01994]
[1765751523462,0.08016686,88206.0,88205.0,0.01994]
[1765751523664,0.06883066,88206.0,88205.0,0.01994]
[1765751523869,0.0205,88206.0,88205.0,0.08567]
[1765751524067,0.3608,88207.0,88206.0,0.06573]
[1765751524273,0.00017011,88214.0,88205.0,0.01994]
[1765751524274,0.00017011,88214.0,88213.0,0.06573]
[1765751524972,0.0113325,88235.0,88231.0,0.01994]
[1765751525664,0.3608,88232.0,88195.0,0.3608]
[1765751525854,0.3608,88232.0,88228.0,0.01994]
[1765751525855,0.03920285,88231.0,88228.0,0.01994]
[1765751526059,0.0113286,88265.0,88228.0,0.01994]
[1765751526060,0.3608,88254.0,88242.0,0.01994]
[1765751526355,0.0278787,88253.0,88252.0,0.06573]
[1765751526557,0.00039649,88257.0,88256.0,0.05212]
[1765751526759,0.00039649,88257.0,88256.0,0.08567]
[1765751527264,0.02831511,88257.0,88256.0,0.08567]
[1765751527765,0.00039649,88257.0,88256.0,0.08567]
[1765751528067,0.3608,88282.0,88275.0,0.02106]
[1765751528259,0.0546221,88281.0,88275.0,0.02106]
[1765751528454,0.0279221,88280.0,88275.0,0.02106]
[1765751528665,0.3608,88282.0,88279.0,0.03351]
[1765751528868,0.02793738,88281.0,88279.0,0.03351]
[1765751529068,0.02793738,88280.0,88279.0,0.03351]
[1765751529460,0.02793738,88280.0,88279.0,0.06666]
[1765751529656,0.003,88280.0,88279.0,0.06666]
[1765751529970,0.3608,88291.0,88279.0,0.06666]
[1765751529971,0.3608,88300.0,88288.0,0.06666]
[1765751530166,0.48803212,88300.0,88288.0,0.06666]
[1765751530360,0.47670792,88300.0,88288.0,0.06666]
[1765751530565,0.47670792,88300.0,88290.0,0.02106]
[1765751530766,0.51030792,88300.0,88290.0,0.02106]
[1765751530960,0.51030792,88300.0,88285.0,0.00016991]
[1765751530961,0.06629,88286.0,88285.0,0.00016991]
[1765751532671,0.06829,88286.0,88285.0,0.00116991]
[1765751532993,0.06829,88286.0,88251.0,0.3721303]
[1765751532994,0.0113274,88275.0,88251.0,0.3721303]
[1765751533178,0.011328,88270.0,88251.0,0.3721303]
[1765751533359,0.3608,88271.0,88260.0,0.3608]
[1765751533668,0.3608,88273.0,88272.0,0.03351]
[1765751534773,0.3628,88273.0,88272.0,0.03451]
[1765751534964,0.42909,88273.0,88272.0,0.001]
[1765751535971,0.43009,88273.0,88272.0,0.002]
[1765751536272,0.3638,88273.0,88272.0,0.03551]
[1765751537073,0.43009,88273.0,88272.0,0.03551]
[1765751537682,0.43009,88273.0,88272.0,0.002]
[1765751540575,0.43009,88273.0,88264.0,0.00016991]
[1765751540576,0.0776186,88265.0,88264.0,0.00016991]
[1765751540776,0.4384186,88265.0,88264.0,0.00016991]
[1765751541180,0.4384186,88265.0,88245.0,0.02106]
[1765751541181,0.0113301,88253.0,88245.0,0.02106]
[1765751542682,0.0133301,88253.0,88247.0,0.00711472]
[1765751542869,0.06629,88248.0,88247.0,0.00711472]
[1765751543581,0.0113302,88252.0,88247.0,0.00711472]
[1765751544077,0.0113302,88252.0,88247.0,0.00411472]
[1765751544278,0.001,88248.0,88247.0,0.04062472]
[1765751544469,0.0113302,88252.0,88247.0,0.07077472]
[1765751544672,0.0123302,88252.0,88247.0,0.06877472]
[1765751544870,0.001,88248.0,88247.0,0.07277472]
[1765751545267,0.001,88248.0,88247.0,0.47277472]
[1765751545480,0.001,88252.0,88251.0,0.06666]
[1765751545673,0.0113289,88263.0,88251.0,0.06666]
[1765751545674,0.3608,88276.0,88258.0,0.0779895]
[1765751545879,0.3608,88276.0,88264.0,0.06666]
[1765751545880,0.0113276,88273.0,88264.0,0.06666]
[1765751546674,0.0113281,88269.0,88264.0,0.06666]
[1765751547076,0.00016959,88273.0,88272.0,0.0784377]
[1765751547476,0.3608,88288.0,88287.0,0.06711]
[1765751548281,0.38865719,88288.0,88287.0,0.06711]
[1765751548585,0.3618,88288.0,88287.0,0.06911]
[1765751548787,0.3608,88306.0,88288.0,0.0113255]
[1765751548980,0.0113242,88300.0,88293.0,0.3608]
[1765751549176,0.0113242,88300.0,88299.0,0.03334]
[1765751549485,0.03921195,88305.0,88304.0,0.06711]
[1765751549688,0.03921195,88305.0,88293.0,0.3608]
[1765751549689,0.3608,88317.0,88316.0,0.06711]
[1765751549980,0.03579,88335.0,88316.0,0.41827]
[1765751550179,0.02789496,88334.0,88316.0,0.41827]
[1765751550376,0.53027449,88340.0,88332.0,0.11234]
[1765751550377,0.02789496,88333.0,88332.0,0.11234]
[1765751550777,0.14524496,88333.0,88326.0,0.3608]
[1765751551088,0.02789496,88332.0,88326.0,0.3608]
[1765751551384,0.0153197,88335.0,88326.0,0.3608]
[1765751551587,0.027642,88334.0,88326.0,0.3608]
[1765751551776,0.031642,88333.0,88332.0,0.001]
[1765751551978,0.034642,88333.0,88332.0,0.001]
[1765751552778,0.031642,88333.0,88332.0,0.001]
[1765751553173,0.027642,88333.0,88326.0,0.3618]
[1765751553477,0.030642,88332.0,88326.0,0.3628]
[1765751553677,0.027642,88331.0,88326.0,0.3628]
[1765751553873,0.027642,88331.0,88330.0,0.05747]
[1765751554078,0.027642,88332.0,88330.0,0.11234]
[1765751554278,0.027642,88332.0,88331.0,0.05747]
[1765751554279,0.144992,88332.0,88331.0,0.05747]
[1765751554877,0.11735,88327.0,88326.0,0.3618]
[1765751555081,0.144992,88327.0,88326.0,0.3618]
[1765751555492,0.027642,88327.0,88326.0,0.47414]
[1765751555688,0.002,88331.0,88330.0,0.05747]
[1765751555889,0.06041,88332.0,88331.0,0.001]
[1765751556092,0.14805103,88332.0,88331.0,0.001]
[1765751557690,0.08811103,88332.0,88331.0,0.11334]
[1765751558394,0.03070103,88332.0,88331.0,0.11334]
[1765751558589,0.03370103,88332.0,88331.0,0.11434]
[1765751559388,0.15105103,88332.0,88331.0,0.11434]
[1765751560098,0.18684103,88332.0,88331.0,0.002]
[1765751560695,0.18684103,88332.0,88299.0,0.3608]
[1765751560696,0.06949103,88332.0,88299.0,0.3608]
[1765751560889,0.565864,88320.0,88299.0,0.3608]
[1765751561090,0.02770103,88319.0,88299.0,0.3608]
[1765751561287,0.02770103,88318.0,88299.0,0.3608]
[1765751561486,0.565864,88320.0,88309.0,0.3608]
[1765751561487,0.0113225,88313.0,88309.0,0.3608]
[1765751561682,0.02770103,88312.0,88309.0,0.3608]
[1765751561897,0.05741,88310.0,88309.0,0.3608]
[1765751562206,0.14505103,88310.0,88309.0,0.3608]
[1765751562902,0.11735,88303.0,88302.0,0.00016981]
[1765751563085,0.14505103,88303.0,88302.0,0.00016981]
[1765751563589,0.15637473,88303.0,88302.0,0.00016981]
[1765751564295,0.15837473,88303.0,88302.0,0.00716981]
[1765751564995,0.15737473,88303.0,88302.0,0.00316981]
[1765751565196,0.15937473,88303.0,88302.0,0.00416981]
[1765751565395,0.15937473,88303.0,88302.0,0.00116981]
[1765751565693,0.1286751,88292.0,88291.0,0.3608]
[1765751565892,0.15637613,88292.0,88291.0,0.3608]
[1765751566893,0.15737613,88292.0,88291.0,0.3618]
[1765751567897,0.15837613,88292.0,88291.0,0.3618]
[1765751568600,0.16037613,88292.0,88291.0,0.3618]
[1765751569094,0.15737613,88292.0,88291.0,0.3608]
[1765751569299,0.16137613,88292.0,88291.0,0.3618]
[1765751569701,0.15737613,88292.0,88291.0,0.3608]
[1765751569902,0.16037613,88292.0,88291.0,0.3618]
[1765751570097,0.16237613,88292.0,88291.0,0.3618]
[1765751570792,0.15937613,88292.0,88291.0,0.3618]
[1765751570994,0.16137613,88292.0,88291.0,0.3618]
[1765751571594,0.03270103,88292.0,88291.0,0.47414]
[1765751571794,0.15005103,88292.0,88291.0,0.47414]
[1765751572303,0.15005867,88292.0,88291.0,0.47414]
[1765751572800,0.03270867,88292.0,88291.0,0.4854652]
[1765751573002,0.03270867,88292.0,88291.0,0.47414]
[1765751573405,0.03270867,88292.0,88291.0,0.47514]
[1765751573897,0.00016981,88300.0,88299.0,0.11234]
[1765751574101,0.00016981,88300.0,88299.0,0.47314]
[1765751575095,0.00116981,88300.0,88299.0,0.47414]
[1765751576205,0.00016981,88300.0,88299.0,0.47314]
[1765751576402,0.00216981,88300.0,88299.0,0.47714]
[1765751576591,0.01349391,88300.0,88299.0,0.47714]
[1765751577406,0.01249391,88300.0,88299.0,0.47414]
[1765751577595,0.01349391,88300.0,88299.0,0.47714]
[1765751577798,0.01349391,88300.0,88299.0,0.48014]
[1765751578303,0.00216981,88300.0,88299.0,0.48014]
[1765751578798,0.00116981,88300.0,88299.0,0.47714]
[1765751578998,0.00216981,88300.0,88299.0,0.47914]
[1765751579206,0.00116981,88300.0,88299.0,0.47514]
[1765751579408,0.00216981,88300.0,88299.0,0.47814]
[1765751579999,0.00116981,88300.0,88299.0,0.47514]
[1765751580195,0.00216981,88300.0,88299.0,0.47814]
[1765751580399,0.205064,88320.0,88299.0,0.47814]
[1765751580400,0.0113225,88313.0,88312.0,0.10618]
[1765751580803,0.1221825,88313.0,88312.0,0.10618]
[1765751581707,0.1241825,88313.0,88312.0,0.10718]
[1765751582902,0.11286,88313.0,88312.0,0.10718]
[1765751583207,0.00016945,88321.0,88312.0,0.3628]
[1765751583399,0.00016945,88321.0,88320.0,0.47611]
[1765751583902,0.3608,88341.0,88340.0,0.10618]
[1765751584301,0.50615,88341.0,88340.0,0.10618]
[1765751584494,0.14535,88341.0,88340.0,0.10618]
[1765751584699,0.11086,88335.0,88334.0,0.41512]
[1765751584901,0.11086,88335.0,88334.0,0.46698]
[1765751585405,0.004,88341.0,88340.0,0.10618]
[1765751585799,0.0680081,88347.0,88346.0,0.10618]
[1765751585999,0.11086,88347.0,88346.0,0.05432]
[1765751586201,0.11086,88347.0,88334.0,0.3618]
[1765751586400,0.002,88335.0,88334.0,0.46898]
[1765751587109,0.11086,88335.0,88334.0,0.46798]
[1765751587707,0.11086,88335.0,88334.0,0.3608]
[1765751588010,0.11086,88333.0,88332.0,0.00016981]
[1765751589714,0.11286,88333.0,88332.0,0.00116981]
[1765751591007,0.11386,88333.0,88332.0,0.00116981]
[1765751591608,0.11186,88333.0,88332.0,0.00016981]
[1765751591809,0.11386,88333.0,88332.0,0.00116981]
[1765751592509,0.11186,88333.0,88332.0,0.00016981]
[1765751592705,0.11386,88333.0,88332.0,0.00116981]
[1765751593401,0.11186,88333.0,88332.0,0.00016981]
[1765751593613,0.11386,88333.0,88332.0,0.00116981]
[1765751594207,0.11286,88333.0,88332.0,0.00116981]
[1765751594602,0.11286,88333.0,88332.0,0.10734981]
[1765751594816,0.11286,88333.0,88332.0,0.00116981]
[1765751595115,0.47366,88333.0,88332.0,0.00116981]
[1765751596519,0.11286,88333.0,88332.0,0.00116981]
[1765751597802,0.14084457,88333.0,88332.0,0.00116981]
[1765751598015,0.13884457,88333.0,88332.0,0.00016981]
[1765751598208,0.20117939,88333.0,88332.0,0.00116981]
[1765751598608,0.14084457,88333.0,88332.0,0.00116981]
[1765751599620,0.14184457,88333.0,88332.0,0.00116981]
[1765751600010,0.14284457,88333.0,88332.0,0.00116981]
[1765751600517,0.14284457,88333.0,88332.0,0.001]
[1765751600708,0.1221828,88310.0,88301.0,0.3608]
[1765751600913,0.11086,88302.0,88301.0,0.46698]
[1765751601122,0.13884457,88302.0,88301.0,0.46698]
[1765751602320,0.13984457,88302.0,88301.0,0.47298]
[1765751602712,0.14084457,88302.0,88301.0,0.47798]
[1765751603618,0.14084457,88302.0,88301.0,0.42612]
[1765751603814,0.14084457,88302.0,88301.0,0.3688]
[1765751604411,0.13984457,88302.0,88301.0,0.003]
[1765751604616,0.14084457,88302.0,88301.0,0.005]
[1765751605218,0.13984457,88302.0,88301.0,0.003]
[1765751605421,0.14084457,88302.0,88301.0,0.005]
[1765751606120,0.1221848,88294.0,88293.0,0.00016981]
[1765751606323,0.15016937,88294.0,88293.0,0.00016981]
[1765751606524,0.0113274,88274.0,88273.0,0.3608]
[1765751606731,0.14046414,88274.0,88273.0,0.4591]
[1765751606917,0.14046414,88274.0,88273.0,0.40946]
[1765751607317,0.14046414,88274.0,88273.0,0.3608]
[1765751607921,0.14046414,88274.0,88265.0,0.00016991]
[1765751607922,0.1150284,88266.0,88265.0,0.00016991]
[1765751608116,0.14303514,88266.0,88265.0,0.00016991]
[1765751610528,0.14403514,88266.0,88265.0,0.00316991]
[1765751611126,0.14503514,88266.0,88265.0,0.00516991]
[1765751613126,0.1150298,88255.0,88254.0,0.3608]
[1765751614632,0.1047,88255.0,88254.0,0.3658]
[1765751614829,0.1057,88255.0,88254.0,0.3658]
[1765751615235,0.1057,88255.0,88254.0,0.41597]
[1765751618825,0.1057,88255.0,88254.0,0.46808]
[1765751620134,0.002,88255.0,88254.0,0.46808]
[1765751621436,0.05229,88255.0,88254.0,0.46808]
[1765751622229,0.1057,88255.0,88254.0,0.46808]
[1765751623628,0.13315691,88255.0,88254.0,0.005]
[1765751625135,0.13515691,88255.0,88254.0,0.10728]
[1765751625335,0.13515691,88255.0,88254.0,0.12137]
[1765751625336,0.03145691,88255.0,88254.0,0.12137]
[1765751625534,0.004,88255.0,88254.0,0.12137]
[1765751625939,0.005,88255.0,88254.0,0.47817]
[1765751626437,0.005,88255.0,88254.0,0.47717]
[1765751626639,0.00016991,88263.0,88262.0,0.10228]
[1765751626838,0.07793878,88263.0,88262.0,0.10228]
[1765751627146,0.13134878,88263.0,88262.0,0.10228]
[1765751627340,0.16235878,88263.0,88262.0,0.10228]
[1765751627748,0.16335878,88263.0,88262.0,0.10328]
[1765751628447,0.13334878,88263.0,88262.0,0.10428]
[1765751628745,0.00216991,88263.0,88262.0,0.4764089]
[1765751628949,0.3608,88281.0,88280.0,0.10228]
[1765751629245,0.4306449,88281.0,88280.0,0.10228]
[1765751629444,0.3883083,88281.0,88280.0,0.10228]
[1765751629645,0.0275083,88281.0,88280.0,0.10228]
[1765751630441,0.0315083,88281.0,88280.0,0.10328]
[1765751630851,0.0355083,88281.0,88280.0,0.10428]
[1765751631352,0.0233476,88281.0,88280.0,0.1156066]
[1765751631757,0.0203476,88281.0,88280.0,0.1166066]
[1765751631944,0.00016991,88289.0,88280.0,0.1166066]
[1765751631945,0.00016991,88289.0,88288.0,0.1136056]
[1765751632253,0.00556469,88307.0,88306.0,0.10228]
[1765751632645,0.1037,88302.0,88301.0,0.46308]
[1765751633244,0.1037,88302.0,88301.0,0.41097]
[1765751633557,0.1150248,88294.0,88293.0,0.10244991]
[1765751634549,0.1150248,88294.0,88293.0,0.00016991]
[1765751634750,0.1460379,88270.0,88269.0,0.46308]
[1765751635254,0.13471,88270.0,88269.0,0.46308]
[1765751636056,0.13571,88270.0,88269.0,0.46808]
[1765751636444,0.13471,88270.0,88269.0,0.46308]
[1765751636644,0.13671,88270.0,88269.0,0.46808]
[1765751637453,0.13671,88270.0,88269.0,0.46708]
[1765751638067,0.13671,88270.0,88269.0,0.3648]
[1765751638352,0.13671,88270.0,88269.0,0.3638]
[1765751638555,0.13571,88270.0,88269.0,0.3618]
[1765751638854,0.13671,88270.0,88269.0,0.003]
[1765751639346,0.13671,88270.0,88269.0,0.002]
[1765751639950,0.011328,88269.0,88261.0,0.00016991]
[1765751640149,0.107378,88269.0,88268.0,0.10031]
[1765751641552,0.108378,88269.0,88268.0,0.10031]
[1765751641948,0.09605,88262.0,88261.0,0.00016991]
[1765751642155,0.09605,88251.0,88250.0,0.3608]
[1765751642353,0.09605,88248.0,88247.0,0.00011472]
[1765751643443,0.09805,88248.0,88247.0,0.00111472]
[1765751643949,0.12541366,88248.0,88247.0,0.00111472]
[1765751644146,0.12379,88240.0,88239.0,0.00016991]
[1765751644449,0.1073832,88229.0,88228.0,0.10031]
[1765751644649,0.13474686,88229.0,88228.0,0.10031]
[1765751644864,0.09605,88223.0,88222.0,0.46111]
[1765751645048,0.12341366,88223.0,88222.0,0.46111]
[1765751645254,0.12351956,88223.0,88222.0,0.46111]
[1765751645853,0.12351956,88223.0,88222.0,0.41154]
[1765751646352,0.12451956,88223.0,88222.0,0.41554]
[1765751646544,0.12451956,88223.0,88222.0,0.3648]
[1765751646964,0.12551956,88223.0,88222.0,0.006]
[1765751648657,0.09605,88215.0,88214.0,0.05091001]
[1765751648857,0.12341366,88215.0,88214.0,0.05091001]
[1765751649462,0.12341366,88215.0,88214.0,0.10048001]
[1765751649965,0.12441366,88215.0,88214.0,0.10248001]
[1765751650666,0.12441366,88215.0,88214.0,0.10148001]
[1765751650860,0.12541366,88215.0,88214.0,0.10648001]
[1765751651366,0.12541366,88215.0,88214.0,0.10348001]
[1765751652262,0.12541366,88215.0,88214.0,0.10248001]
[1765751653154,0.12541366,88215.0,88214.0,0.00217001]
[1765751654756,0.12541366,88215.0,88214.0,0.10248001]
[1765751655170,0.02936366,88215.0,88214.0,0.10248001]
[1765751655367,0.002,88215.0,88214.0,0.10248001]
[1765751660270,0.02774,88240.0,88222.0,0.10031]
[1765751660470,0.44908,88241.0,88222.0,0.46111]
[1765751661274,0.0021059,88223.0,88222.0,0.46111]
[1765751661572,0.0041059,88223.0,88222.0,0.46211]
[1765751662569,0.0031059,88223.0,88222.0,0.46211]
[1765751662875,0.0011059,88223.0,88222.0,0.46111]
[1765751663066,0.0011059,88223.0,88222.0,0.46211]
[1765751663067,0.0021059,88223.0,88222.0,0.46211]
[1765751663871,0.0021059,88223.0,88222.0,0.41254]
[1765751664065,0.0981559,88223.0,88222.0,0.46211]
[1765751664466,0.0021059,88223.0,88222.0,0.46211]
[1765751669582,0.0113329,88232.0,88230.0,0.08745]
[1765751669879,0.0113329,88232.0,88230.0,0.44825]
[1765751670268,0.02752628,88231.0,88230.0,0.44825]
[1765751670680,0.02952628,88231.0,88230.0,0.44925]
[1765751671869,0.03152628,88231.0,88230.0,0.44925]
[1765751673377,0.03129898,88231.0,88230.0,0.44925]
[1765751678880,0.00017001,88239.0,88238.0,0.08705]
[1765751679284,0.04604001,88239.0,88238.0,0.08705]
[1765751680592,0.00017001,88239.0,88238.0,0.08705]
[1765751680884,0.09514001,88239.0,88238.0,0.04428]
[1765751681288,0.09514001,88239.0,88238.0,0.08845]
[1765751681492,0.09514001,88239.0,88238.0,0.001]
[1765751681795,0.09814001,88239.0,88238.0,0.002]
[1765751682482,0.09814001,88239.0,88238.0,0.04528]
[1765751682684,0.09814001,88239.0,88238.0,0.08945]
[1765751689100,0.09814001,88239.0,88238.0,0.002]
[1765751689300,0.15876865,88239.0,88238.0,0.002]
[1765751689600,0.09814001,88239.0,88238.0,0.002]
[1765751690998,0.1254746,88239.0,88238.0,0.002]
[1765751694102,0.4862746,88239.0,88238.0,0.002]
[1765751694302,0.54702491,88239.0,88238.0,0.002]
[1765751696204,0.08666,88220.0,88219.0,0.43898]
[1765751696502,0.11399459,88220.0,88219.0,0.43898]
[1765751697502,0.001,88220.0,88219.0,0.4553145]
[1765751697697,0.002,88220.0,88219.0,0.4553145]
[1765751703711,0.0113328,88233.0,88232.0,0.07266]
[1765751703902,0.03832861,88233.0,88232.0,0.07266]
[1765751704307,0.02699581,88233.0,88232.0,0.0839928]
[1765751704508,0.36097001,88239.0,88238.0,0.0725]
[1765751704704,0.38796847,88239.0,88238.0,0.0725]
[1765751705305,0.47149847,88239.0,88238.0,0.0725]
[1765751705908,0.42852847,88239.0,88238.0,0.0725]
[1765751706615,0.43052847,88239.0,88238.0,0.0765]
[1765751707004,0.42952847,88239.0,88238.0,0.0745]
[1765751707313,0.47349847,88239.0,88238.0,0.0765]
[1765751707618,0.47244685,88239.0,88238.0,0.0755]
[1765751707800,0.47344685,88239.0,88238.0,0.0775]